[Event "FIDE World School-ch O-9 2025"]
[Site "Vrnjacka Banja"]
[Date "2025.03.21"]
[Round "2.3"]
[White "Wee, Yu Heng Lucas John"]
[Black "Dymov, Dmitrii"]
[Result "1-0"]
[Annotator "NA RC"]
[ECO "D58"]
[WhiteElo "1680"]
[BlackElo "1565"]
[PlyCount "71"]
[EventDate "2025.03.19"]
[EventType "swiss"]
[EventCountry "SRB"]
[SourceTitle "playchess.com"]
[Source "ChessBase"]
[SourceQuality "1"]
[TimeControl "5400+30"]

1. d4 {[%emt 0:00:28]} d5 {[%emt 0:00:14]} 2. c4 {[%emt 0:00:05]} e6 {[%emt 0:00:06]} 3. Nc3 {[%emt 0:00:04]} Nf6 {[%emt 0:00:07]} 4. Bg5 {[%emt 0:00:05]} Be7 {[%emt 0:00:06]} 5. Nf3 {[%emt 0:00:14]} O-O {[%emt 0:00:17]} 6. e3 {[%emt 0:00:12]} h6 {[%emt 0:00:21]} 7. Bh4 {[%emt 0:00:11]} b6 {[%emt 0:00:06]} 8. cxd5 {[%emt 0:00:23]} exd5 {[%emt 0:00:09]} 9. Bd3 {[%emt 0:00:06]} Bb7 {[%emt 0:00:10]} 10. O-O {[%emt 0:01:00]} Nbd7 {[%emt 0:00:09]} 11. Nd2 {[%emt 0:12:19]} c5 {[%emt 0:01:16]} 12. Re1 {[%emt 0:01:11]} Re8 {[%emt 0:00:44]} 13. Rc1 {[%emt 0:04:20]} Ne4 {[%emt 0:02:45]} 14. Bxe7 {[%emt 0:03:57]} Qxe7 {[%emt 0:00:09]} 15. Bxe4 {[%emt 0:00:34]} dxe4 {[%emt 0:00:10]} 16. Nc4 {[%emt 0:05:35]} Ba6 {[%emt 0:02:46]} 17. Ne2 {[%emt 0:03:47]} Rad8 {[%emt 0:02:18]} 18. Qa4 {[%emt 0:04:15]} Nb8 {[%emt 0:01:49]} 19. Qa3 {[%emt 0:11:43]} b5 {[%emt 0:03:21]} 20. Nd2 {[%emt 0:05:43]} c4 {[%emt 0:00:41]} 21. Qxe7 {[%emt 0:03:46]} Rxe7 {[%emt 0:00:13]} 22. Nc3 {[%emt 0:03:21]} f5 {[%emt 0:00:22]} 23. g4 {[%emt 0:01:36]} g6 {[%emt 0:00:32]} 24. gxf5 {[%emt 0:04:34]} gxf5 {[%emt 0:00:08]} 25. a4 {[%emt 0:00:11]} Rg7+ {[%emt 0:01:51]} 26. Kh1 {[%emt 0:00:48]} b4 {[%emt 0:04:25]} 27. Nb5 {[%emt 0:01:58]} Bxb5 {[%emt 0:04:09]} 28. axb5 {[%emt 0:00:04]} Rb7 {[%emt 0:00:23]} 29. Nxc4 {[%emt 0:01:16]} Rxb5 {[%emt 0:00:14]} 30. Rg1+ {[%emt 0:00:14]} Kh7 {[%emt 0:01:25]} 31. Ne5 {[%emt 0:01:34]} Rb7 {[%emt 0:00:40]} 32. Rg6 {[%emt 0:03:23]} Nd7 {[%emt 0:01:19]} 33. Rxh6+ {[%emt 0:01:53]} Kxh6 {[%emt 0:00:12]} 34. Nf7+ {[%emt 0:00:02]} Kg6 {[%emt 0:00:38]} 35. Nxd8 {[%emt 0:00:33]} Kf6 {[%emt 0:00:28]} 36. Nxb7 {[%emt 0:00:18]} 1-0

[Event "FIDE World School-ch O-9 2025"]
[Site "Vrnjacka Banja"]
[Date "2025.03.21"]
[Round "2.4"]
[White "Uchral, Bayarsaikhan"]
[Black "Sultankhan, Nurislam"]
[Result "0-1"]
[Annotator "NA RC"]
[ECO "D20"]
[WhiteElo "1534"]
[BlackElo "1649"]
[PlyCount "76"]
[EventDate "2025.03.19"]
[EventType "swiss"]
[EventCountry "SRB"]
[SourceTitle "playchess.com"]
[Source "ChessBase"]
[SourceQuality "1"]
[TimeControl "5400+30"]

1. d4 {[%emt 0:00:05]} d5 {[%emt 0:00:16]} 2. c4 {[%emt 0:00:28]} dxc4 {[%emt 0:00:34]} 3. e4 {[%emt 0:03:59]} e5 {[%emt 0:01:07]} 4. dxe5 {[%emt 0:04:36]} Qxd1+ {[%emt 0:02:52]} 5. Kxd1 {[%emt 0:00:13]} Nc6 {[%emt 0:03:55]} 6. f4 {[%emt 0:01:38]} Bg4+ {[%emt 0:02:20]} 7. Be2 {[%emt 0:16:15]} O-O-O+ {[%emt 0:06:55]} 8. Nd2 {[%emt 0:02:16]} Bxe2+ {[%emt 0:06:25]} 9. Nxe2 {[%emt 0:01:02]} Bc5 {[%emt 0:05:44]} 10. a3 {[%emt 0:06:29]} Nge7 {[%emt 0:05:13]} 11. Kc2 {[%emt 0:00:19]} b5 {[%emt 0:02:59]} 12. Nf3 {[%emt 0:10:29]} Na5 {[%emt 0:07:12]} 13. Bd2 {[%emt 0:08:59]} Nb3 {[%emt 0:01:09]} 14. Rad1 {[%emt 0:00:16]} Rd3 {[%emt 0:08:51]} 15. Bc3 {[%emt 0:02:28]} Re3 {[%emt 0:02:41]} 16. Rhe1 {[%emt 0:08:45]} Rxe4 {[%emt 0:01:37]} 17. Ng5 {[%emt 0:04:53]} Re3 {[%emt 0:02:27]} 18. Nxf7 {[%emt 0:00:41]} Rf8 {[%emt 0:03:33]} 19. Ng5 {[%emt 0:00:19]} Nc6 {[%emt 0:06:38]} 20. Ne6 {[%emt 0:07:48]} Rf7 {[%emt 0:03:00]} 21. Nxc5 {[%emt 0:02:58]} Nxc5 {[%emt 0:01:13]} 22. Rd5 {[%emt 0:03:00]} Nd3 {[%emt 0:01:50]} 23. Kd2 {[%emt 0:05:47]} Re4 {[%emt 0:13:27]} 24. Rf1 {[%emt 0:00:27]} a6 {[%emt 0:00:56]} 25. b3 {[%emt 0:01:57]} Nxf4 {[%emt 0:02:19]} 26. Nxf4 {[%emt 0:00:11]} Rfxf4 {[%emt 0:00:24]} 27. Rxf4 {[%emt 0:00:06]} Rxf4 {[%emt 0:00:17]} 28. Ke3 {[%emt 0:01:08]} Rg4 {[%emt 0:01:36]} 29. Kf3 {[%emt 0:00:24]} Rh4 {[%emt 0:01:14]} 30. Kg3 {[%emt 0:02:15]} Ne7 {[%emt 0:00:23]} 31. Kxh4 {[%emt 0:02:38]} Nxd5 {[%emt 0:00:29]} 32. Bb2 {[%emt 0:00:11]} cxb3 {[%emt 0:00:12]} 33. e6 {[%emt 0:00:46]} g6 {[%emt 0:00:35]} 34. Kg5 {[%emt 0:03:44]} c5 {[%emt 0:00:12]} 35. e7 {[%emt 0:00:00]} Kd7 {[%emt 0:00:18]} 36. Kg4 {[%emt 0:01:00]} c4 {[%emt 0:00:14]} 37. Kf3 {[%emt 0:00:00]} c3 {[%emt 0:00:12]} 38. Bxc3 {[%emt 0:00:00]} Nxc3 {[%emt 0:08:11]} 0-1

[Event "FIDE World School-ch O-9 2025"]
[Site "Vrnjacka Banja"]
[Date "2025.03.21"]
[Round "2.5"]
[White "Dede, Omer Taha"]
[Black "Rotescu, Vladimir-Szilard"]
[Result "1-0"]
[Annotator "NA RC"]
[ECO "B23"]
[WhiteElo "1647"]
[BlackElo "1529"]
[PlyCount "113"]
[EventDate "2025.03.19"]
[EventType "swiss"]
[EventCountry "SRB"]
[SourceTitle "playchess.com"]
[Source "ChessBase"]
[SourceQuality "1"]
[TimeControl "5400+30"]

1. e4 {[%emt 0:01:00]} c5 {[%emt 0:00:05]} 2. Nc3 {[%emt 0:01:00]} d6 {[%emt 0:00:15]} 3. d4 {[%emt 0:01:00]} cxd4 {[%emt 0:00:13]} 4. Qxd4 {[%emt 0:01:00]} Nc6 {[%emt 0:00:14]} 5. Qd2 {[%emt 0:01:00]} a6 {[%emt 0:01:13]} 6. b3 {[%emt 0:01:00]} b5 {[%emt 0:00:24]} 7. Bb2 {[%emt 0:01:00]} Bb7 {[%emt 0:00:40]} 8. f3 {[%emt 0:01:00]} Nf6 {[%emt 0:00:18]} 9. O-O-O {[%emt 0:02:30]} g6 {[%emt 0:02:01]} 10. Nd5 {[%emt 0:01:00]} Bg7 {[%emt 0:01:17]} 11. Nxf6+ {[%emt 0:01:00]} Bxf6 {[%emt 0:01:14]} 12. Bxf6 {[%emt 0:01:30]} exf6 {[%emt 0:00:11]} 13. Qxd6 {[%emt 0:01:01]} Qxd6 {[%emt 0:00:58]} 14. Rxd6 {[%emt 0:00:59]} Ke7 {[%emt 0:01:36]} 15. Rd1 {[%emt 0:01:30]} Rhc8 {[%emt 0:00:21]} 16. Kb2 {[%emt 0:03:30]} Rc7 {[%emt 0:01:33]} 17. Bd3 {[%emt 0:01:00]} Nb4 {[%emt 0:02:12]} 18. Ne2 {[%emt 0:01:30]} Nxd3+ {[%emt 0:00:33]} 19. cxd3 {[%emt 0:03:00]} b4 {[%emt 0:01:36]} 20. Rc1 {[%emt 0:01:00]} Rd7 {[%emt 0:00:12]} 21. d4 {[%emt 0:01:00]} a5 {[%emt 0:00:23]} 22. Rhd1 {[%emt 0:01:32]} a4 {[%emt 0:01:36]} 23. Nf4 {[%emt 0:05:28]} g5 {[%emt 0:01:25]} 24. Ne2 {[%emt 0:02:30]} Kd8 {[%emt 0:01:49]} 25. d5 {[%emt 0:01:00]} Bc8 {[%emt 0:02:53]} 26. Nd4 {[%emt 0:01:00]} Rb7 {[%emt 0:00:47]} 27. Rc4 {[%emt 0:01:00]} Kd7 {[%emt 0:00:52]} 28. Nc6 {[%emt 0:02:00]} Ke8 {[%emt 0:00:32]} 29. Rxb4 {[%emt 0:01:30]} Rxb4 {[%emt 0:00:17]} 30. Nxb4 {[%emt 0:01:00]} axb3 {[%emt 0:00:21]} 31. axb3 {[%emt 0:01:00]} Kd7 {[%emt 0:00:24]} 32. Ra1 {[%emt 0:01:00]} Rxa1 {[%emt 0:00:48]} 33. Kxa1 {[%emt 0:00:30]} Kd6 {[%emt 0:00:11]} 34. Kb2 {[%emt 0:01:00]} f5 {[%emt 0:00:36]} 35. Kc3 {[%emt 0:01:40]} g4 {[%emt 0:00:33]} 36. Kd4 {[%emt 0:00:50]} f6 {[%emt 0:00:42]} 37. Kc4 {[%emt 0:04:30]} Bd7 {[%emt 0:00:36]} 38. Nd3 {[%emt 0:01:00]} h5 {[%emt 0:00:54]} 39. Nf4 {[%emt 0:12:30]} gxf3 {[%emt 0:01:00]} 40. gxf3 {[%emt 0:00:30]} h4 {[%emt 0:00:54]} 41. Nd3 {[%emt 0:02:00]} fxe4 {[%emt 0:02:47]} 42. fxe4 {[%emt 0:00:30]} Bg4 {[%emt 0:00:39]} 43. b4 {[%emt 0:02:00]} Bh3 {[%emt 0:00:58]} 44. b5 {[%emt 0:01:00]} Bg4 {[%emt 0:00:29]} 45. b6 {[%emt 0:00:30]} Bc8 {[%emt 0:00:05]} 46. Nc5 {[%emt 0:01:00]} h3 {[%emt 0:00:28]} 47. b7 {[%emt 0:00:30]} Bxb7 {[%emt 0:00:09]} 48. Nxb7+ {[%emt 0:00:15]} Kc7 {[%emt 0:00:17]} 49. Kc5 {[%emt 0:00:30]} Kd7 {[%emt 1:14:29]} 50. Kb6 {[%emt 0:00:19]} Kc8 {[%emt 0:00:00]} 51. Kc6 {[%emt 0:00:10]} f5 {[%emt 0:00:00]} 52. d6 {[%emt 0:00:13]} fxe4 {[%emt 0:00:00]} 53. d7+ {[%emt 0:00:05]} Kb8 {[%emt 0:00:00]} 54. d8=Q+ {[%emt 0:00:05]} Ka7 {[%emt 0:00:00]} 55. Nc5 {[%emt 0:00:00]} e3 {[%emt 0:00:00]} 56. Qb6+ {[%emt 0:00:03]} Ka8 {[%emt 0:00:00]} 57. Qb7# {[%emt 0:00:04]} 1-0

[Event "FIDE World School-ch O-9 2025"]
[Site "Vrnjacka Banja"]
[Date "2025.03.21"]
[Round "2.6"]
[White "Lee, Jinwoo A"]
[Black "Ukhaanbileg Uranbileg"]
[Result "1/2-1/2"]
[Annotator "NA RC"]
[ECO "D32"]
[WhiteElo "1525"]
[BlackElo "1645"]
[PlyCount "149"]
[EventDate "2025.03.19"]
[EventType "swiss"]
[EventCountry "SRB"]
[SourceTitle "playchess.com"]
[Source "ChessBase"]
[SourceQuality "1"]
[TimeControl "5400+30"]

1. d4 {[%emt 0:03:26]} d5 {[%emt 0:00:27]} 2. c4 {[%emt 0:01:57]} e6 {[%emt 0:00:12]} 3. Nc3 {[%emt 0:01:47]} c5 {[%emt 0:01:13]} 4. cxd5 {[%emt 0:00:34]} cxd4 {[%emt 0:00:23]} 5. Qxd4 {[%emt 0:00:10]} Nc6 {[%emt 0:00:06]} 6. Qd1 {[%emt 0:00:11]} exd5 {[%emt 0:00:08]} 7. Nf3 {[%emt 0:01:39]} Nf6 {[%emt 0:01:13]} 8. e3 {[%emt 0:05:13]} Be6 {[%emt 0:05:11]} 9. Bd3 {[%emt 0:01:03]} Bd6 {[%emt 0:00:24]} 10. a3 {[%emt 0:02:45]} O-O {[%emt 0:01:41]} 11. Qc2 {[%emt 0:03:29]} Qb6 {[%emt 0:05:15]} 12. O-O {[%emt 0:01:56]} d4 {[%emt 0:03:41]} 13. Ne4 {[%emt 0:00:57]} Nxe4 {[%emt 0:12:45]} 14. Bxe4 {[%emt 0:00:16]} h6 {[%emt 0:17:59]} 15. Bxc6 {[%emt 0:01:36]} d3 {[%emt 0:03:10]} 16. Qxd3 {[%emt 0:00:43]} Qxc6 {[%emt 0:00:20]} 17. Nd4 {[%emt 0:05:13]} Qc7 {[%emt 0:04:01]} 18. Nxe6 {[%emt 0:01:30]} Bxh2+ {[%emt 0:00:37]} 19. Kh1 {[%emt 0:00:11]} fxe6 {[%emt 0:00:15]} 20. f4 {[%emt 0:01:08]} Bg3 {[%emt 0:02:06]} 21. Qg6 {[%emt 0:00:10]} Qc4 {[%emt 0:00:14]} 22. Bd2 {[%emt 0:00:42]} Bh4 {[%emt 0:00:56]} 23. Rf3 {[%emt 0:02:13]} Bf6 {[%emt 0:02:02]} 24. Rg3 {[%emt 0:00:47]} Rad8 {[%emt 0:03:27]} 25. Bc3 {[%emt 0:00:21]} Bxc3 {[%emt 0:01:29]} 26. bxc3 {[%emt 0:00:19]} Qxc3 {[%emt 0:00:38]} 27. Qxe6+ {[%emt 0:00:45]} Kh8 {[%emt 0:00:32]} 28. Rb1 {[%emt 0:01:26]} Qc7 {[%emt 0:01:21]} 29. Qg6 {[%emt 0:07:33]} Rf6 {[%emt 0:00:33]} 30. Qe4 {[%emt 0:00:45]} Rb6 {[%emt 0:01:42]} 31. Rxb6 {[%emt 0:01:06]} Qxb6 {[%emt 0:00:57]} 32. Rg6 {[%emt 0:07:36]} Qb5 {[%emt 0:01:19]} 33. f5 {[%emt 0:05:11]} Qd5 {[%emt 0:02:22]} 34. Qxd5 {[%emt 0:00:49]} Rxd5 {[%emt 0:00:15]} 35. e4 {[%emt 0:00:11]} Re5 {[%emt 0:00:05]} 36. Rg4 {[%emt 0:00:43]} Kg8 {[%emt 0:00:05]} 37. Kg1 {[%emt 0:00:04]} Kf7 {[%emt 0:00:10]} 38. Kf2 {[%emt 0:00:26]} Kf6 {[%emt 0:00:14]} 39. Ke3 {[%emt 0:00:32]} Ra5 {[%emt 0:00:05]} 40. Kf4 {[%emt 0:01:38]} Ra4 {[%emt 0:03:34]} 41. Rg3 {[%emt 0:00:36]} a5 {[%emt 0:00:59]} 42. Rb3 {[%emt 0:00:46]} g5+ {[%emt 0:00:39]} 43. fxg6 {[%emt 0:00:18]} Kxg6 {[%emt 0:00:24]} 44. Rb6+ {[%emt 0:00:09]} Kf7 {[%emt 0:01:04]} 45. Rxb7+ {[%emt 0:00:23]} Kf6 {[%emt 0:00:51]} 46. Rb6+ {[%emt 0:00:09]} Kg7 {[%emt 0:00:35]} 47. Rb3 {[%emt 0:00:18]} Rd4 {[%emt 0:00:25]} 48. Ke3 {[%emt 0:00:37]} Rc4 {[%emt 0:00:45]} 49. Kd3 {[%emt 0:00:58]} Rc6 {[%emt 0:01:03]} 50. Rb5 {[%emt 0:00:34]} Ra6 {[%emt 0:00:49]} 51. a4 {[%emt 0:00:22]} Kf6 {[%emt 0:01:06]} 52. Kd4 {[%emt 0:00:35]} Ke6 {[%emt 0:01:31]} 53. Rh5 {[%emt 0:00:26]} Ke7 {[%emt 0:01:04]} 54. Kc5 {[%emt 0:01:47]} Kd7 {[%emt 0:02:26]} 55. Rd5+ {[%emt 0:01:38]} Kc7 {[%emt 0:01:23]} 56. e5 {[%emt 0:00:42]} Rg6 {[%emt 0:00:49]} 57. Rd6 {[%emt 0:00:44]} Rg5 {[%emt 0:01:30]} 58. Rc6+ {[%emt 0:01:03]} Kd7 {[%emt 0:00:37]} 59. Rxh6 {[%emt 0:01:35]} Rxe5+ {[%emt 0:01:26]} 60. Kb6 {[%emt 0:00:46]} Rg5 {[%emt 0:00:27]} 61. Rh2 {[%emt 0:01:53]} Kd6 {[%emt 0:00:33]} 62. g3 {[%emt 0:00:42]} Rxg3 {[%emt 0:00:59]} 63. Rd2+ {[%emt 0:00:09]} Ke6 {[%emt 0:00:41]} 64. Kxa5 {[%emt 0:00:09]} Ke7 {[%emt 0:00:23]} 65. Kb4 {[%emt 0:00:50]} Rg4+ {[%emt 0:00:37]} 66. Kb5 {[%emt 0:00:28]} Rg5+ {[%emt 0:00:19]} 67. Kb6 {[%emt 0:01:13]} Rg6+ {[%emt 0:01:15]} 68. Kc5 {[%emt 0:00:24]} Ra6 {[%emt 0:00:21]} 69. Kb5 {[%emt 0:00:21]} Ra8 {[%emt 0:00:07]} 70. a5 {[%emt 0:00:05]} Rd8 {[%emt 0:00:55]} 71. Re2+ {[%emt 0:00:17]} Kd7 {[%emt 0:00:06]} 72. a6 {[%emt 0:00:07]} Kc7 {[%emt 0:00:07]} 73. Re7+ {[%emt 0:00:28]} Kb8 {[%emt 0:00:04]} 74. Kc6 {[%emt 0:00:19]} Rh8 {[%emt 0:18:03]} 75. Kb6 {[%emt 0:37:08]} 1/2-1/2

[Event "FIDE World School-ch O-9 2025"]
[Site "Vrnjacka Banja"]
[Date "2025.03.22"]
[Round "4.1"]
[White "Wee, Yu Heng Lucas John"]
[Black "Khabul, Chinzorig"]
[Result "1-0"]
[Annotator "NA RC"]
[ECO "D53"]
[WhiteElo "1680"]
[BlackElo "1513"]
[PlyCount "95"]
[EventDate "2025.03.19"]
[EventType "swiss"]
[EventCountry "SRB"]
[SourceTitle "playchess.com"]
[Source "ChessBase"]
[SourceQuality "1"]
[TimeControl "5400+30"]

1. d4 {[%emt 0:00:03]} d5 {[%emt 0:00:35]} 2. c4 {[%emt 0:00:07]} e6 {[%emt 0:00:22]} 3. Nc3 {[%emt 0:00:05]} Nf6 {[%emt 0:00:33]} 4. Bg5 {[%emt 0:00:05]} Be7 {[%emt 0:00:55]} 5. Nf3 {[%emt 0:00:20]} a6 {[%emt 0:00:46]} 6. e3 {[%emt 0:01:24]} dxc4 {[%emt 0:00:32]} 7. a4 {[%emt 0:01:23]} b6 {[%emt 0:00:47]} 8. Bxc4 {[%emt 0:00:23]} Bb7 {[%emt 0:00:38]} 9. O-O {[%emt 0:00:13]} O-O {[%emt 0:00:38]} 10. Ne5 {[%emt 0:09:27]} Nbd7 {[%emt 0:01:00]} 11. f4 {[%emt 0:02:39]} c5 {[%emt 0:01:38]} 12. f5 {[%emt 0:05:49]} cxd4 {[%emt 0:04:50]} 13. Nxf7 {[%emt 0:06:22]} Qc7 {[%emt 0:07:47]} 14. Qxd4 {[%emt 0:06:35]} Rxf7 {[%emt 0:09:22]} 15. fxe6 {[%emt 0:00:44]} Rff8 {[%emt 0:00:41]} 16. exd7+ {[%emt 0:00:06]} Kh8 {[%emt 0:00:26]} 17. Rad1 {[%emt 0:05:09]} Rad8 {[%emt 0:00:37]} 18. Nd5 {[%emt 0:18:30]} Bxd5 {[%emt 0:07:20]} 19. Bxf6 {[%emt 0:00:22]} Bxf6 {[%emt 0:02:46]} 20. Qxd5 {[%emt 0:00:00]} h6 {[%emt 0:03:31]} 21. e4 {[%emt 0:01:15]} Be7 {[%emt 0:02:08]} 22. Rf7 {[%emt 0:02:51]} Bg5 {[%emt 0:07:04]} 23. Qd6 {[%emt 0:06:58]} Qxd6 {[%emt 0:03:40]} 24. Rxd6 {[%emt 0:00:05]} Kg8 {[%emt 0:01:57]} 25. Rf5+ {[%emt 0:01:16]} Kh7 {[%emt 0:00:16]} 26. Be6 {[%emt 0:01:45]} g6 {[%emt 0:00:36]} 27. Rf7+ {[%emt 0:00:55]} Rxf7 {[%emt 0:00:31]} 28. Bxf7 {[%emt 0:00:44]} Rf8 {[%emt 0:00:13]} 29. Bxg6+ {[%emt 0:00:14]} Kg7 {[%emt 0:00:07]} 30. Bf5 {[%emt 0:00:10]} Kf7 {[%emt 0:00:18]} 31. Rc6 {[%emt 0:00:27]} Ke7 {[%emt 0:00:24]} 32. Rc8 {[%emt 0:00:11]} Rd8 {[%emt 0:00:20]} 33. Rxd8 {[%emt 0:00:14]} Kxd8 {[%emt 0:00:16]} 34. Kf2 {[%emt 0:00:40]} Ke7 {[%emt 0:00:31]} 35. Kg3 {[%emt 0:00:11]} Kd6 {[%emt 0:00:21]} 36. h4 {[%emt 0:00:19]} Bd8 {[%emt 0:00:39]} 37. Kg4 {[%emt 0:00:12]} Kc5 {[%emt 0:00:14]} 38. b3 {[%emt 0:00:10]} Kd6 {[%emt 0:01:22]} 39. Kh5 {[%emt 0:31:37]} Ke5 {[%emt 0:00:40]} 40. g4 {[%emt 0:00:00]} Kf4 {[%emt 0:00:18]} 41. Kxh6 {[%emt 0:00:00]} Bxh4 {[%emt 0:00:08]} 42. Kg7 {[%emt 0:00:00]} Ke5 {[%emt 0:00:09]} 43. Kf7 {[%emt 0:00:00]} Kd6 {[%emt 0:00:19]} 44. Ke8 {[%emt 0:00:00]} Kc7 {[%emt 0:00:08]} 45. e5 {[%emt 0:00:00]} Bg5 {[%emt 0:00:36]} 46. e6 {[%emt 0:00:00]} a5 {[%emt 0:00:10]} 47. e7 {[%emt 0:00:00]} Bxe7 {[%emt 0:00:14]} 48. Kxe7 {[%emt 0:00:00]} 1-0

[Event "FIDE World School-ch O-9 2025"]
[Site "Vrnjacka Banja"]
[Date "2025.03.22"]
[Round "4.2"]
[White "Batbileg, Boldbaatar"]
[Black "Sultankhan, Nurislam"]
[Result "0-1"]
[Annotator "NA RC"]
[ECO "D06"]
[WhiteElo "1637"]
[BlackElo "1649"]
[PlyCount "106"]
[EventDate "2025.03.19"]
[EventType "swiss"]
[EventCountry "SRB"]
[SourceTitle "playchess.com"]
[Source "ChessBase"]
[SourceQuality "1"]
[TimeControl "5400+30"]

1. d4 {[%emt 0:02:45]} d5 {[%emt 0:00:29]} 2. c4 {[%emt 0:00:13]} c5 {[%emt 0:00:58]} 3. cxd5 {[%emt 0:00:20]} Qxd5 {[%emt 0:00:37]} 4. Nf3 {[%emt 0:00:19]} cxd4 {[%emt 0:00:51]} 5. Nc3 {[%emt 0:00:08]} Qa5 {[%emt 0:00:57]} 6. Nxd4 {[%emt 0:00:11]} Nf6 {[%emt 0:01:52]} 7. Nb3 {[%emt 0:01:05]} Qc7 {[%emt 0:02:43]} 8. Nb5 {[%emt 0:00:14]} Qb6 {[%emt 0:00:38]} 9. e4 {[%emt 0:00:27]} Bg4 {[%emt 0:06:21]} 10. Qc2 {[%emt 0:01:50]} Na6 {[%emt 0:03:10]} 11. Be3 {[%emt 0:03:06]} Qd8 {[%emt 0:00:47]} 12. f3 {[%emt 0:03:19]} Bd7 {[%emt 0:01:25]} 13. Rd1 {[%emt 0:09:43]} e6 {[%emt 0:01:45]} 14. Bc4 {[%emt 0:10:23]} Bb4+ {[%emt 0:02:25]} 15. Kf2 {[%emt 0:01:26]} O-O {[%emt 0:02:36]} 16. Qe2 {[%emt 0:15:30]} Nc7 {[%emt 0:03:46]} 17. Nc5 {[%emt 0:05:25]} b6 {[%emt 0:05:59]} 18. Nxd7 {[%emt 0:01:10]} Nxd7 {[%emt 0:03:58]} 19. a3 {[%emt 0:16:04]} Be7 {[%emt 0:04:09]} 20. Bf4 {[%emt 0:01:39]} Ne8 {[%emt 0:01:57]} 21. Nd4 {[%emt 0:05:40]} Bc5 {[%emt 0:05:18]} 22. Be3 {[%emt 0:03:15]} Bxd4 {[%emt 0:04:52]} 23. Rxd4 {[%emt 0:00:30]} Qe7 {[%emt 0:04:38]} 24. Bb5 {[%emt 0:01:24]} Ndf6 {[%emt 0:01:30]} 25. Rhd1 {[%emt 0:03:42]} Nc7 {[%emt 0:02:13]} 26. Bc6 {[%emt 0:03:55]} Rad8 {[%emt 0:02:52]} 27. Qd2 {[%emt 0:02:04]} Rxd4 {[%emt 0:00:57]} 28. Qxd4 {[%emt 0:00:13]} Rc8 {[%emt 0:07:06]} 29. Qa4 {[%emt 0:01:50]} a6 {[%emt 0:06:51]} 30. Bxb6 {[%emt 0:01:39]} h5 {[%emt 0:01:47]} 31. Be3 {[%emt 0:04:24]} Rd8 {[%emt 0:01:37]} 32. b4 {[%emt 0:00:47]} Rxd1 {[%emt 0:01:24]} 33. Qxd1 {[%emt 0:00:08]} Nb5 {[%emt 0:00:51]} 34. a4 {[%emt 0:01:40]} Na7 {[%emt 0:01:46]} 35. b5 {[%emt 0:00:48]} axb5 {[%emt 0:01:00]} 36. axb5 {[%emt 0:00:10]} Nxc6 {[%emt 0:01:08]} 37. bxc6 {[%emt 0:00:08]} Qc7 {[%emt 0:00:55]} 38. Qa4 {[%emt 0:00:26]} Kh7 {[%emt 0:01:59]} 39. Qb5 {[%emt 0:00:40]} Qxh2 {[%emt 0:00:44]} 40. Qg5 {[%emt 0:01:10]} Qc7 {[%emt 0:00:35]} 41. Qc5 {[%emt 0:00:07]} h4 {[%emt 0:01:12]} 42. Ke2 {[%emt 0:00:29]} Ne8 {[%emt 0:00:31]} 43. Qb6 {[%emt 0:00:40]} Qh2 {[%emt 0:00:47]} 44. Kf2 {[%emt 0:00:41]} h3 {[%emt 0:00:49]} 45. Ke1 {[%emt 0:00:08]} Qxg2 {[%emt 0:00:35]} 46. Bg1 {[%emt 0:00:59]} h2 {[%emt 0:01:02]} 47. Bxh2 {[%emt 0:00:08]} Qxh2 {[%emt 0:00:04]} 48. Qd8 {[%emt 0:00:26]} Nc7 {[%emt 0:00:46]} 49. Qd7 {[%emt 0:00:13]} Kg6 {[%emt 0:01:01]} 50. Qd3 {[%emt 0:00:20]} Qg1+ {[%emt 0:01:41]} 51. Ke2 {[%emt 0:00:16]} Qc5 {[%emt 0:00:59]} 52. Qd7 {[%emt 0:00:40]} Nb5 {[%emt 0:00:32]} 53. Qd1 {[%emt 0:01:11]} Nc3+ {[%emt 0:00:07]} 0-1